[Event "Early-Titled-Tuesday-Blitz-May-14-2024"]
[Site "Chess.com"]
[Date "2024.05.14"]
[Round "7"]
[White "Perecke"]
[Black "Matibar"]
[Result "1-0"]
[WhiteElo "2596"]
[BlackElo "2774"]
[TimeControl "180+1"]
[EndTime "9:20:55 PDT"]
[Termination "Perecke won by resignation"]

1. e4 {[%clk 0:03:00.9]} 1... c5 {[%clk 0:02:58.5]} 2. Nf3 {[%clk 0:03:00.7]}
2... Nc6 {[%clk 0:02:58.6]} 3. d4 {[%clk 0:03:01.3]} 3... cxd4 {[%clk
0:02:58.7]} 4. Nxd4 {[%clk 0:03:02.1]} 4... Nf6 {[%clk 0:02:58.8]} 5. Nc3 {[%clk
0:03:02.8]} 5... d6 {[%clk 0:02:59.3]} 6. Bg5 {[%clk 0:03:02.5]} 6... Qb6 {[%clk
0:02:59.3]} 7. Nb3 {[%clk 0:02:57.8]} 7... e6 {[%clk 0:02:58.8]} 8. Bxf6 {[%clk
0:02:55.2]} 8... gxf6 {[%clk 0:02:58.5]} 9. Qd2 {[%clk 0:02:55.8]} 9... Bd7
{[%clk 0:02:41.1]} 10. O-O-O {[%clk 0:02:55.5]} 10... O-O-O {[%clk 0:02:41.1]}
11. f4 {[%clk 0:02:55.3]} 11... a6 {[%clk 0:02:29.6]} 12. Kb1 {[%clk 0:02:55.3]}
12... Kb8 {[%clk 0:02:29.7]} 13. f5 {[%clk 0:02:54.9]} 13... Be7 {[%clk
0:02:26.5]} 14. Be2 {[%clk 0:02:54.4]} 14... h5 {[%clk 0:02:26.1]} 15. Bd3
{[%clk 0:02:49.6]} 15... h4 {[%clk 0:02:25.1]} 16. fxe6 {[%clk 0:02:47.4]} 16...
fxe6 {[%clk 0:02:24.5]} 17. Ne2 {[%clk 0:02:48.1]} 17... Ne5 {[%clk 0:02:20.8]}
18. Nf4 {[%clk 0:02:46.5]} 18... Rdg8 {[%clk 0:02:19]} 19. c3 {[%clk 0:02:43.8]}
19... Rg4 {[%clk 0:01:50.1]} 20. h3 {[%clk 0:02:26.5]} 20... Rg3 {[%clk
0:01:49.5]} 21. Be2 {[%clk 0:02:17.4]} 21... Qe3 {[%clk 0:01:21]} 22. Nd4 {[%clk
0:01:29]} 22... Qxe4+ {[%clk 0:01:00.2]} 23. Ka1 {[%clk 0:01:28.4]} 23... Ng6
{[%clk 0:01:00.6]} 24. Nxg6 {[%clk 0:01:06.2]} 24... Qxg6 {[%clk 0:00:58.5]} 25.
Bf3 {[%clk 0:01:06.6]} 25... Qg5 {[%clk 0:00:44.5]} 26. Qe2 {[%clk 0:01:04.4]}
26... Qe5 {[%clk 0:00:35.1]} 27. Qc4 {[%clk 0:00:57.7]} 27... d5 {[%clk
0:00:25.6]} 28. Qb3 {[%clk 0:00:57.8]} 28... f5 {[%clk 0:00:14.5]} 29. Rhe1
{[%clk 0:00:57.1]} 29... Qd6 {[%clk 0:00:13.1]} 30. Nxf5 {[%clk 0:00:55.1]}
30... exf5 {[%clk 0:00:14]} 31. Rxd5 {[%clk 0:00:55.2]} 31... Be6 {[%clk
0:00:10.3]} 32. Rxd6 {[%clk 0:00:31.3]} 32... Bxb3 {[%clk 0:00:10.1]} 33. Rxe7
{[%clk 0:00:32]} 33... Rxf3 {[%clk 0:00:10.7]} 34. gxf3 {[%clk 0:00:31.8]} 34...
Ba4 {[%clk 0:00:11.6]} 35. b3 {[%clk 0:00:23]} 35... Bc6 {[%clk 0:00:11.6]} 36.
Rf6 {[%clk 0:00:21.9]} 36... Bxf3 {[%clk 0:00:10.9]} 37. Rxf5 {[%clk 0:00:21.7]}
37... Bg2 {[%clk 0:00:11.5]} 38. Rfe5 {[%clk 0:00:20.5]} 38... Ka7 {[%clk
0:00:09.4]} 39. Rg5 {[%clk 0:00:15.3]} 39... Bxh3 {[%clk 0:00:08.7]} 40. Rgg7
{[%clk 0:00:15.9]} 40... Bc8 {[%clk 0:00:08.6]} 41. Rh7 {[%clk 0:00:16.5]} 41...
Rxh7 {[%clk 0:00:08.9]} 42. Rxh7 {[%clk 0:00:17.4]} 42... h3 {[%clk 0:00:09.5]}
43. Kb2 {[%clk 0:00:17.8]} 43... Kb6 {[%clk 0:00:10.1]} 44. c4 {[%clk
0:00:18.2]} 44... Kc5 {[%clk 0:00:10.6]} 45. Kc3 {[%clk 0:00:18]} 45... Kd6
{[%clk 0:00:11.1]} 46. Kd4 {[%clk 0:00:17.8]} 46... Bf5 {[%clk 0:00:10.6]} 47.
Rh6+ {[%clk 0:00:17.7]} 47... Ke7 {[%clk 0:00:10.8]} 48. Ke5 {[%clk 0:00:17.8]}
48... Bg4 {[%clk 0:00:10.9]} 49. Rh7+ {[%clk 0:00:15.8]} 49... Kf8 {[%clk
0:00:11]} 50. Rxb7 {[%clk 0:00:16.4]} 50... Kg8 {[%clk 0:00:09.5]} 51. Rb8+
{[%clk 0:00:09.2]} 51... Kg7 {[%clk 0:00:09.7]} 52. Rb7+ {[%clk 0:00:09.8]}
52... Kg6 {[%clk 0:00:09.7]} 53. Rb6+ {[%clk 0:00:05.9]} 53... Kg5 {[%clk
0:00:08]} 54. Rf6 {[%clk 0:00:04.1]} 54... h2 {[%clk 0:00:07.2]} 55. Rf1 {[%clk
0:00:04.3]} 55... Bf3 {[%clk 0:00:06.6]} 56. c5 {[%clk 0:00:03.7]} 56... Bg2
{[%clk 0:00:05.6]} 57. Re1 {[%clk 0:00:03.8]} 57... h1=Q {[%clk 0:00:06.1]} 58.
Rxh1 {[%clk 0:00:02.9]} 58... Bxh1 {[%clk 0:00:07]} 59. Kd6 {[%clk 0:00:02.9]}
59... Kf5 {[%clk 0:00:07]} 60. c6 {[%clk 0:00:03.3]} 60... Kf4 {[%clk
0:00:04.8]} 61. b4 {[%clk 0:00:03.6]} 61... Ke3 {[%clk 0:00:04.8]} 62. a4 {[%clk
0:00:03.2]} 62... Kd4 {[%clk 0:00:05.1]} 63. b5 {[%clk 0:00:03.8]} 63... axb5
{[%clk 0:00:05.1]} 64. axb5 {[%clk 0:00:04.7]} 64... Kc4 {[%clk 0:00:04.7]} 65.
b6 {[%clk 0:00:05.1]} 65... Kb5 {[%clk 0:00:05.3]} 66. b7 {[%clk 0:00:05.4]} 1-0

[Event "Early-Titled-Tuesday-Blitz-May-14-2024"]
[Site "Chess.com"]
[Date "2024.05.14"]
[Round "7"]
[White "karinachess1"]
[Black "bubeliang"]
[Result "1-0"]
[WhiteElo "2619"]
[BlackElo "2820"]
[TimeControl "180+1"]
[EndTime "9:20:55 PDT"]
[Termination "karinachess1 won on time"]

1. d4 {[%clk 0:03:00.9]} 1... a5 {[%clk 0:02:58.1]} 2. e4 {[%clk 0:02:59.8]}
2... Ra6 {[%clk 0:02:56.2]} 3. Bxa6 {[%clk 0:02:59]} 3... Nxa6 {[%clk
0:02:57.1]} 4. Nc3 {[%clk 0:02:58.5]} 4... b6 {[%clk 0:02:56]} 5. Nf3 {[%clk
0:02:56.9]} 5... Bb7 {[%clk 0:02:55.6]} 6. O-O {[%clk 0:02:57.1]} 6... g6 {[%clk
0:02:52.4]} 7. Qe2 {[%clk 0:02:51.5]} 7... Bg7 {[%clk 0:02:51.3]} 8. Bf4 {[%clk
0:02:41.3]} 8... d6 {[%clk 0:02:45.4]} 9. Rad1 {[%clk 0:02:40.1]} 9... e6 {[%clk
0:02:44.7]} 10. a3 {[%clk 0:02:37.8]} 10... Ne7 {[%clk 0:02:43.8]} 11. Qd2
{[%clk 0:02:35.5]} 11... h6 {[%clk 0:02:40.1]} 12. Rfe1 {[%clk 0:02:34.7]} 12...
Kf8 {[%clk 0:02:39.5]} 13. Nb5 {[%clk 0:02:20.2]} 13... Kg8 {[%clk 0:02:34.7]}
14. c4 {[%clk 0:02:14.6]} 14... Qa8 {[%clk 0:02:34]} 15. Nc3 {[%clk 0:02:08.5]}
15... Kh7 {[%clk 0:02:32.5]} 16. Qe2 {[%clk 0:01:55]} 16... g5 {[%clk
0:02:28.9]} 17. Bc1 {[%clk 0:01:41.6]} 17... Ng6 {[%clk 0:02:27.9]} 18. Kh1
{[%clk 0:01:08.4]} 18... Rf8 {[%clk 0:02:18.7]} 19. Ng1 {[%clk 0:01:07.4]} 19...
f5 {[%clk 0:02:17]} 20. f3 {[%clk 0:01:05.8]} 20... f4 {[%clk 0:02:12.3]} 21. e5
{[%clk 0:01:00.3]} 21... dxe5 {[%clk 0:02:01.3]} 22. d5 {[%clk 0:00:53.8]} 22...
Qc8 {[%clk 0:01:54.1]} 23. Qc2 {[%clk 0:00:49]} 23... Qe8 {[%clk 0:01:48.9]} 24.
Ne4 {[%clk 0:00:40.9]} 24... Kg8 {[%clk 0:01:46.6]} 25. Ne2 {[%clk 0:00:40]}
25... exd5 {[%clk 0:01:41.4]} 26. cxd5 {[%clk 0:00:39.6]} 26... Qf7 {[%clk
0:01:41.4]} 27. N2c3 {[%clk 0:00:28.6]} 27... Nh4 {[%clk 0:01:37.3]} 28. d6
{[%clk 0:00:27.8]} 28... g4 {[%clk 0:01:17.7]} 29. Qf2 {[%clk 0:00:24]} 29...
Nf5 {[%clk 0:00:58.8]} 30. dxc7 {[%clk 0:00:17.9]} 30... Qxc7 {[%clk 0:00:52.1]}
31. Nd5 {[%clk 0:00:15.6]} 31... Qf7 {[%clk 0:00:44.9]} 32. Nxb6 {[%clk
0:00:15.9]} 32... Nd4 {[%clk 0:00:41]} 33. Nd6 {[%clk 0:00:14.5]} 33... gxf3
{[%clk 0:00:24.4]} 34. Nxf7 {[%clk 0:00:12.8]} 34... fxg2+ {[%clk 0:00:24.6]}
35. Kg1 {[%clk 0:00:11.8]} 35... Nf3+ {[%clk 0:00:19.5]} 36. Qxf3 {[%clk
0:00:09.4]} 36... Bxf3 {[%clk 0:00:19]} 37. Nd6 {[%clk 0:00:08.2]} 37... Bxd1
{[%clk 0:00:17.9]} 38. Rxd1 {[%clk 0:00:08]} 38... f3 {[%clk 0:00:16.6]} 39. Be3
{[%clk 0:00:07.9]} 39... Nc7 {[%clk 0:00:14]} 40. Nbc4 {[%clk 0:00:08]} 40...
Ne6 {[%clk 0:00:13.6]} 41. Ne4 {[%clk 0:00:08.2]} 41... Rc8 {[%clk 0:00:12.3]}
42. b3 {[%clk 0:00:08.1]} 42... a4 {[%clk 0:00:11.4]} 43. Ncd6 {[%clk
0:00:06.4]} 43... Rc2 {[%clk 0:00:11.4]} 44. bxa4 {[%clk 0:00:05.9]} 44... Nd4
{[%clk 0:00:11.1]} 45. Bxd4 {[%clk 0:00:05.7]} 45... exd4 {[%clk 0:00:12]} 46.
Nf2 {[%clk 0:00:06]} 46... Be5 {[%clk 0:00:10.6]} 47. Nde4 {[%clk 0:00:05.9]}
47... Ra2 {[%clk 0:00:11.2]} 48. a5 {[%clk 0:00:05.8]} 48... Rxa3 {[%clk
0:00:11.2]} 49. Rb1 {[%clk 0:00:04.7]} 49... Rxa5 {[%clk 0:00:10.9]} 50. Rd1
{[%clk 0:00:04.5]} 50... Ra4 {[%clk 0:00:09.1]} 51. Nd3 {[%clk 0:00:04.7]} 51...
Bc7 {[%clk 0:00:07.2]} 52. Nef2 {[%clk 0:00:04]} 52... Ra2 {[%clk 0:00:05.9]}
53. Ne1 {[%clk 0:00:03.7]} 53... Ra3 {[%clk 0:00:05]} 54. Ned3 {[%clk
0:00:03.7]} 54... h5 {[%clk 0:00:04.6]} 55. h3 {[%clk 0:00:03.1]} 55... Kg7
{[%clk 0:00:04.9]} 56. Nc5 {[%clk 0:00:02.7]} 56... Kg6 {[%clk 0:00:03.1]} 57.
Nce4 {[%clk 0:00:02.1]} 57... Kf5 {[%clk 0:00:02.5]} 58. Rxd4 {[%clk 0:00:02.1]}
58... Be5 {[%clk 0:00:02.8]} 59. Rd1 {[%clk 0:00:02.2]} 59... Kf4 {[%clk
0:00:03.4]} 60. Nd2 {[%clk 0:00:02.3]} 60... Re3 {[%clk 0:00:03.4]} 61. Nc4
{[%clk 0:00:02.5]} 1-0

[Event "Early-Titled-Tuesday-Blitz-May-14-2024"]
[Site "Chess.com"]
[Date "2024.05.14"]
[Round "7"]
[White "Niilo1"]
[Black "Mikasinski"]
[Result "1-0"]
[WhiteElo "2351"]
[BlackElo "2661"]
[TimeControl "180+1"]
[EndTime "9:20:57 PDT"]
[Termination "Niilo1 won by resignation"]

1. e4 {[%clk 0:03:00.9]} 1... c5 {[%clk 0:02:59.8]} 2. Nf3 {[%clk 0:03:00.9]}
2... d6 {[%clk 0:03:00.3]} 3. d4 {[%clk 0:03:00.8]} 3... cxd4 {[%clk 0:03:01.2]}
4. Nxd4 {[%clk 0:03:01.1]} 4... Nf6 {[%clk 0:03:01.9]} 5. Nc3 {[%clk 0:03:01.4]}
5... a6 {[%clk 0:03:02.7]} 6. g3 {[%clk 0:03:01.9]} 6... e5 {[%clk 0:03:02.4]}
7. Nb3 {[%clk 0:03:02.2]} 7... Be6 {[%clk 0:03:02.7]} 8. Bg2 {[%clk 0:03:02.6]}
8... Be7 {[%clk 0:03:02.1]} 9. O-O {[%clk 0:03:02.5]} 9... Nc6 {[%clk
0:03:01.6]} 10. Re1 {[%clk 0:02:58.4]} 10... O-O {[%clk 0:03:01.5]} 11. a4
{[%clk 0:02:50.2]} 11... Rc8 {[%clk 0:02:59]} 12. Nd2 {[%clk 0:02:50.3]} 12...
Nd4 {[%clk 0:02:57.9]} 13. Nf1 {[%clk 0:02:50.9]} 13... Bg4 {[%clk 0:02:55.9]}
14. Qd3 {[%clk 0:02:47.6]} 14... Qc7 {[%clk 0:02:43.8]} 15. Ne3 {[%clk 0:02:45]}
15... Be6 {[%clk 0:02:40.3]} 16. Nf5 {[%clk 0:02:19.9]} 16... Bxf5 {[%clk
0:02:34.2]} 17. exf5 {[%clk 0:02:20.1]} 17... b5 {[%clk 0:02:30.4]} 18. axb5
{[%clk 0:02:13]} 18... axb5 {[%clk 0:02:30.6]} 19. Be3 {[%clk 0:02:04.4]} 19...
Nxc2 {[%clk 0:01:48.2]} 20. Qxc2 {[%clk 0:01:59.7]} 20... b4 {[%clk 0:01:48.9]}
21. Ra7 {[%clk 0:02:00]} 21... Qd8 {[%clk 0:01:47.8]} 22. Qb3 {[%clk 0:01:44.3]}
22... bxc3 {[%clk 0:01:46]} 23. Bb6 {[%clk 0:01:42.9]} 23... Qe8 {[%clk
0:01:34.9]} 24. Bb7 {[%clk 0:01:24]} 24... Rb8 {[%clk 0:01:21.6]} 25. Bc7 {[%clk
0:01:23.9]} 25... cxb2 {[%clk 0:01:02.6]} 26. Bxb8 {[%clk 0:01:23.1]} 26... Qxb8
{[%clk 0:01:00.8]} 27. Ra8 {[%clk 0:01:21.5]} 27... Qc7 {[%clk 0:01:01.2]} 28.
Qxb2 {[%clk 0:01:17.5]} 28... h6 {[%clk 0:00:52.3]} 29. Rc1 {[%clk 0:01:15.6]}
29... Qd7 {[%clk 0:00:52.7]} 30. Bc8 {[%clk 0:01:04.4]} 30... Qd8 {[%clk
0:00:42.4]} 31. Ra7 {[%clk 0:00:43.9]} 31... Nd5 {[%clk 0:00:36.3]} 32. Qb7
{[%clk 0:00:19.6]} 32... Qb6 {[%clk 0:00:23.7]} 33. Qxb6 {[%clk 0:00:18.8]}
33... Nxb6 {[%clk 0:00:22.6]} 34. Rxe7 {[%clk 0:00:19.5]} 34... Nxc8 {[%clk
0:00:19.9]} 35. Rd7 {[%clk 0:00:15]} 35... Re8 {[%clk 0:00:13.8]} 36. Rcc7
{[%clk 0:00:14.2]} 36... Rf8 {[%clk 0:00:08.7]} 37. Kg2 {[%clk 0:00:14.3]} 37...
h5 {[%clk 0:00:08.6]} 38. h4 {[%clk 0:00:11.8]} 38... e4 {[%clk 0:00:04.6]} 39.
Kf1 {[%clk 0:00:10.8]} 39... e3 {[%clk 0:00:02.4]} 40. fxe3 {[%clk 0:00:10.6]}
40... Nb6 {[%clk 0:00:03]} 41. Rxd6 {[%clk 0:00:10.1]} 41... Na4 {[%clk
0:00:02.8]} 42. Rc2 {[%clk 0:00:05.4]} 42... Re8 {[%clk 0:00:01.1]} 43. Ra6
{[%clk 0:00:04.9]} 43... Nb2 {[%clk 0:00:00.6]} 44. Rxb2 {[%clk 0:00:04.9]}
44... Rxe3 {[%clk 0:00:01.4]} 45. Rb8+ {[%clk 0:00:04.7]} 45... Kh7 {[%clk
0:00:01.8]} 46. Ra7 {[%clk 0:00:05.1]} 46... Rf3+ {[%clk 0:00:02.3]} 47. Kg2
{[%clk 0:00:05.4]} 47... Rxf5 {[%clk 0:00:03.2]} 48. Rbb7 {[%clk 0:00:05.6]}
48... Kg6 {[%clk 0:00:03.4]} 49. Rb6+ {[%clk 0:00:05.7]} 49... f6 {[%clk
0:00:04]} 50. Rbb7 {[%clk 0:00:05.5]} 50... Rc5 {[%clk 0:00:04.2]} 51. Rxg7+
{[%clk 0:00:06.1]} 51... Kf5 {[%clk 0:00:04.9]} 52. Raf7 {[%clk 0:00:05.9]}
52... Rc2+ {[%clk 0:00:05.1]} 53. Kf3 {[%clk 0:00:05.9]} 53... Rc3+ {[%clk
0:00:05.6]} 54. Kg2 {[%clk 0:00:06.5]} 54... Rc2+ {[%clk 0:00:06.2]} 55. Kh3
{[%clk 0:00:07.3]} 55... Rc1 {[%clk 0:00:06.7]} 56. Rf8 {[%clk 0:00:07.2]} 56...
Rh1+ {[%clk 0:00:06.4]} 57. Kg2 {[%clk 0:00:07.9]} 57... Rc1 {[%clk 0:00:07.1]}
58. Rgf7 {[%clk 0:00:08.4]} 58... Rc2+ {[%clk 0:00:07.7]} 59. Kh3 {[%clk
0:00:08.5]} 59... Rc1 {[%clk 0:00:08.3]} 60. Rxf6+ {[%clk 0:00:08.6]} 60... Ke5
{[%clk 0:00:09.1]} 61. Rf1 {[%clk 0:00:08.2]} 61... Rc3 {[%clk 0:00:08.5]} 62.
Re8+ {[%clk 0:00:08.5]} 62... Kd6 {[%clk 0:00:08.3]} 63. Rd1+ {[%clk 0:00:09]}
63... Kc7 {[%clk 0:00:08.8]} 64. Re5 {[%clk 0:00:08.1]} 64... Rc5 {[%clk
0:00:08.3]} 65. Rxc5+ {[%clk 0:00:08.1]} 1-0

[Event "Early-Titled-Tuesday-Blitz-May-14-2024"]
[Site "Chess.com"]
[Date "2024.05.14"]
[Round "7"]
[White "Renatoforf"]
[Black "PapaieDudu"]
[Result "0-1"]
[WhiteElo "1959"]
[BlackElo "2376"]
[TimeControl "180+1"]
[EndTime "9:20:57 PDT"]
[Termination "PapaieDudu won on time"]

1. e4 {[%clk 0:02:57.6]} 1... c5 {[%clk 0:02:59.9]} 2. d4 {[%clk 0:02:55.3]}
2... cxd4 {[%clk 0:02:58.3]} 3. c3 {[%clk 0:02:55.2]} 3... dxc3 {[%clk
0:02:57.2]} 4. Nxc3 {[%clk 0:02:55.1]} 4... Nc6 {[%clk 0:02:57.3]} 5. Nf3 {[%clk
0:02:55.3]} 5... d6 {[%clk 0:02:57.8]} 6. Bc4 {[%clk 0:02:55.5]} 6... Nf6 {[%clk
0:02:58.2]} 7. e5 {[%clk 0:02:54.2]} 7... dxe5 {[%clk 0:02:57.8]} 8. Qxd8+
{[%clk 0:02:49.7]} 8... Nxd8 {[%clk 0:02:58]} 9. Nb5 {[%clk 0:02:48.5]} 9... Rb8
{[%clk 0:02:49.8]} 10. Nxe5 {[%clk 0:02:47.3]} 10... e6 {[%clk 0:02:29.6]} 11.
Nc7+ {[%clk 0:02:42.3]} 11... Ke7 {[%clk 0:02:29.1]} 12. Bf4 {[%clk 0:02:35.1]}
12... Nh5 {[%clk 0:02:06.2]} 13. Be3 {[%clk 0:02:26.5]} 13... b6 {[%clk
0:02:02.8]} 14. O-O-O {[%clk 0:02:19.6]} 14... f6 {[%clk 0:01:46.1]} 15. Rxd8
{[%clk 0:02:00.8]} 15... Kxd8 {[%clk 0:01:36.8]} 16. Nf7+ {[%clk 0:01:55.8]}
16... Kxc7 {[%clk 0:01:37.3]} 17. Nxh8 {[%clk 0:01:54.9]} 17... g6 {[%clk
0:01:00.2]} 18. Nf7 {[%clk 0:01:46.4]} 18... Bd7 {[%clk 0:00:47.5]} 19. Rd1
{[%clk 0:01:43.9]} 19... g5 {[%clk 0:00:35.8]} 20. g4 {[%clk 0:01:34.7]} 20...
Nf4 {[%clk 0:00:26.5]} 21. Bxf4+ {[%clk 0:01:28.8]} 21... gxf4 {[%clk
0:00:26.8]} 22. g5 {[%clk 0:01:25.6]} 22... fxg5 {[%clk 0:00:10.4]} 23. Nxg5
{[%clk 0:01:24.1]} 23... e5 {[%clk 0:00:04]} 24. Ne6+ {[%clk 0:01:21.6]} 24...
Bxe6 {[%clk 0:00:03.3]} 25. Bxe6 {[%clk 0:01:22]} 25... Bd6 {[%clk 0:00:02.8]}
26. Kb1 {[%clk 0:01:19.8]} 26... Re8 {[%clk 0:00:03.4]} 27. Bd5 {[%clk 0:01:18]}
27... Bc5 {[%clk 0:00:03.7]} 28. f3 {[%clk 0:01:16.3]} 28... Re7 {[%clk
0:00:02.5]} 29. Be4 {[%clk 0:01:15.8]} 29... Bd4 {[%clk 0:00:02.7]} 30. Rc1+
{[%clk 0:01:13.7]} 30... Kd8 {[%clk 0:00:03]} 31. Rc6 {[%clk 0:01:12.2]} 31...
Rc7 {[%clk 0:00:02.5]} 32. Rxc7 {[%clk 0:01:11.5]} 32... Kxc7 {[%clk 0:00:03.4]}
33. b3 {[%clk 0:01:10.2]} 33... h6 {[%clk 0:00:03]} 34. Kc2 {[%clk 0:01:09]}
34... Kd6 {[%clk 0:00:03.4]} 35. Kd3 {[%clk 0:01:09.6]} 35... Kc5 {[%clk
0:00:04]} 36. h3 {[%clk 0:01:07.3]} 36... a6 {[%clk 0:00:03]} 37. a3 {[%clk
0:01:06.3]} 37... b5 {[%clk 0:00:03.3]} 38. b4+ {[%clk 0:01:05.8]} 38... Kb6
{[%clk 0:00:03.8]} 39. Kc2 {[%clk 0:01:04.9]} 39... Be3 {[%clk 0:00:04.1]} 40.
Kb3 {[%clk 0:01:04.3]} 40... a5 {[%clk 0:00:04]} 41. bxa5+ {[%clk 0:01:03]}
41... Kxa5 {[%clk 0:00:04.6]} 42. Bc6 {[%clk 0:01:01.3]} 42... Bc5 {[%clk
0:00:04.2]} 43. Be4 {[%clk 0:01:00.2]} 43... Kb6 {[%clk 0:00:03.7]} 44. Bd5
{[%clk 0:00:59.6]} 44... Kc7 {[%clk 0:00:02.1]} 45. a4 {[%clk 0:00:57.4]} 45...
bxa4+ {[%clk 0:00:01.2]} 46. Kxa4 {[%clk 0:00:56.9]} 46... Kd6 {[%clk
0:00:02.1]} 47. Be4 {[%clk 0:00:56.2]} 47... Bd4 {[%clk 0:00:03]} 48. Kb5 {[%clk
0:00:55.6]} 48... Ke7 {[%clk 0:00:03.9]} 49. Kc6 {[%clk 0:00:55.3]} 49... Kf6
{[%clk 0:00:04.8]} 50. Kd5 {[%clk 0:00:55.3]} 50... Kg5 {[%clk 0:00:05.7]} 51.
Ke6 {[%clk 0:00:53.8]} 51... Kh4 {[%clk 0:00:06.6]} 52. Bf5 {[%clk 0:00:52.8]}
52... Kg3 {[%clk 0:00:07]} 53. Bg4 {[%clk 0:00:50.7]} 53... e4 {[%clk 0:00:07]}
54. fxe4 {[%clk 0:00:50]} 54... f3 {[%clk 0:00:07.5]} 55. Bxf3 {[%clk
0:00:48.4]} 55... Kxf3 {[%clk 0:00:07.8]} 56. e5 {[%clk 0:00:48]} 56... h5
{[%clk 0:00:07.8]} 57. Kf5 {[%clk 0:00:47.6]} 57... h4 {[%clk 0:00:08]} 58. e6
{[%clk 0:00:47.5]} 58... Bc5 {[%clk 0:00:06.8]} 59. Kg5 {[%clk 0:00:45.5]} 59...
Kg3 {[%clk 0:00:07.3]} 60. Kf6 {[%clk 0:00:44.1]} 60... Kxh3 {[%clk 0:00:07.7]}
61. e7 {[%clk 0:00:44.1]} 61... Bxe7+ {[%clk 0:00:08.3]} 62. Kxe7 {[%clk
0:00:43.6]} 62... Kg2 {[%clk 0:00:09]} 0-1

[Event "Early-Titled-Tuesday-Blitz-May-14-2024"]
[Site "Chess.com"]
[Date "2024.05.14"]
[Round "7"]
[White "Casablanca"]
[Black "biveklama"]
[Result "0-1"]
[WhiteElo "2709"]
[BlackElo "2577"]
[TimeControl "180+1"]
[EndTime "9:20:58 PDT"]
[Termination "biveklama won by checkmate"]

1. e4 {[%clk 0:03:00.9]} 1... c5 {[%clk 0:02:55.7]} 2. Nf3 {[%clk 0:03:00.7]}
2... d6 {[%clk 0:02:55.7]} 3. Nc3 {[%clk 0:03:00.1]} 3... Nf6 {[%clk 0:02:55.7]}
4. d4 {[%clk 0:02:57.8]} 4... cxd4 {[%clk 0:02:56]} 5. Nxd4 {[%clk 0:02:58.7]}
5... e5 {[%clk 0:02:56.3]} 6. Bb5+ {[%clk 0:02:54.9]} 6... Nbd7 {[%clk
0:02:56.9]} 7. Nf5 {[%clk 0:02:52]} 7... a6 {[%clk 0:02:57.5]} 8. Bxd7+ {[%clk
0:02:49.9]} 8... Qxd7 {[%clk 0:02:58.4]} 9. Bg5 {[%clk 0:02:47.3]} 9... Nxe4
{[%clk 0:02:58.2]} 10. Nxg7+ {[%clk 0:02:45.5]} 10... Bxg7 {[%clk 0:02:59.1]}
11. Nxe4 {[%clk 0:02:45.9]} 11... O-O {[%clk 0:02:59.6]} 12. Qxd6 {[%clk
0:02:42.7]} 12... f6 {[%clk 0:02:59.2]} 13. Be3 {[%clk 0:02:38.5]} 13... Qg4
{[%clk 0:02:59]} 14. Ng3 {[%clk 0:02:37.3]} 14... Be6 {[%clk 0:02:29.8]} 15. O-O
{[%clk 0:02:33.3]} 15... Rac8 {[%clk 0:02:03.8]} 16. c3 {[%clk 0:02:27.3]} 16...
Rc6 {[%clk 0:02:02.3]} 17. Qe7 {[%clk 0:02:25]} 17... Rf7 {[%clk 0:01:54.5]} 18.
Qd8+ {[%clk 0:02:18.4]} 18... Rf8 {[%clk 0:01:50.3]} 19. Qe7 {[%clk 0:02:17.6]}
19... Rf7 {[%clk 0:01:50]} 20. Qe8+ {[%clk 0:02:13]} 20... Rf8 {[%clk
0:01:49.1]} 21. Qh5 {[%clk 0:02:12.6]} 21... Rd8 {[%clk 0:01:22.9]} 22. Qxg4
{[%clk 0:02:10.4]} 22... Bxg4 {[%clk 0:01:22.6]} 23. f3 {[%clk 0:02:07.4]} 23...
Be6 {[%clk 0:01:21.6]} 24. Rfd1 {[%clk 0:01:53]} 24... Rcd6 {[%clk 0:01:19.9]}
25. Rxd6 {[%clk 0:01:52.7]} 25... Rxd6 {[%clk 0:01:20.8]} 26. Ne4 {[%clk
0:01:50.3]} 26... Rd3 {[%clk 0:01:13.4]} 27. Kf2 {[%clk 0:01:50.2]} 27... Rd8
{[%clk 0:00:34.9]} 28. Nc5 {[%clk 0:01:45.9]} 28... Bc8 {[%clk 0:00:33.9]} 29.
Ke2 {[%clk 0:01:39.4]} 29... Kf7 {[%clk 0:00:32.7]} 30. c4 {[%clk 0:01:36.5]}
30... Bf8 {[%clk 0:00:32.2]} 31. Ne4 {[%clk 0:01:29.3]} 31... f5 {[%clk
0:00:31.1]} 32. Nd2 {[%clk 0:01:27.6]} 32... Be6 {[%clk 0:00:27.4]} 33. Rc1
{[%clk 0:01:27.1]} 33... Bb4 {[%clk 0:00:15.4]} 34. Nb1 {[%clk 0:01:12.5]} 34...
a5 {[%clk 0:00:13.8]} 35. a3 {[%clk 0:01:08.4]} 35... Be7 {[%clk 0:00:13.1]} 36.
b3 {[%clk 0:01:08]} 36... a4 {[%clk 0:00:08.3]} 37. b4 {[%clk 0:01:07.2]} 37...
Rc8 {[%clk 0:00:07.4]} 38. Nd2 {[%clk 0:01:07.5]} 38... b5 {[%clk 0:00:06.2]}
39. c5 {[%clk 0:01:05.6]} 39... Bd5 {[%clk 0:00:06.6]} 40. Nb1 {[%clk 0:01:05]}
40... Ke6 {[%clk 0:00:06.2]} 41. Rd1 {[%clk 0:00:59.1]} 41... Rd8 {[%clk
0:00:05.8]} 42. Nc3 {[%clk 0:00:58.8]} 42... Bc4+ {[%clk 0:00:05.9]} 43. Ke1
{[%clk 0:00:59.5]} 43... Bf6 {[%clk 0:00:04.8]} 44. Rxd8 {[%clk 0:00:58.1]}
44... Bxd8 {[%clk 0:00:05.7]} 45. g4 {[%clk 0:00:42]} 45... Bf6 {[%clk
0:00:04.6]} 46. gxf5+ {[%clk 0:00:41.8]} 46... Kxf5 {[%clk 0:00:05.5]} 47. Ne4
{[%clk 0:00:41.4]} 47... Be7 {[%clk 0:00:05.6]} 48. Kd2 {[%clk 0:00:38.1]} 48...
Bd5 {[%clk 0:00:05.1]} 49. Ng3+ {[%clk 0:00:36.1]} 49... Ke6 {[%clk 0:00:04.4]}
50. Ke2 {[%clk 0:00:36.6]} 50... Bc4+ {[%clk 0:00:04]} 51. Kf2 {[%clk
0:00:36.7]} 51... Bd5 {[%clk 0:00:04.4]} 52. Bc1 {[%clk 0:00:37.2]} 52... Bh4
{[%clk 0:00:03.3]} 53. Ke3 {[%clk 0:00:34.7]} 53... Bg5+ {[%clk 0:00:03]} 54.
Kd3 {[%clk 0:00:15.7]} 54... Bxc1 {[%clk 0:00:03.9]} 55. Kc3 {[%clk 0:00:16.3]}
55... Bxa3 {[%clk 0:00:03.7]} 56. Ne2 {[%clk 0:00:16.7]} 56... Bxf3 {[%clk
0:00:02.9]} 57. Ng1 {[%clk 0:00:17.4]} 57... Bd5 {[%clk 0:00:02.8]} 58. Ne2
{[%clk 0:00:17.5]} 58... Bc4 {[%clk 0:00:03.4]} 59. Ng3 {[%clk 0:00:17.6]} 59...
Bc1 {[%clk 0:00:03.7]} 60. Ne4 {[%clk 0:00:18.2]} 60... Kd5 {[%clk 0:00:04]} 61.
Nf6+ {[%clk 0:00:18.3]} 61... Kc6 {[%clk 0:00:04.7]} 62. Ng4 {[%clk 0:00:18.1]}
62... a3 {[%clk 0:00:05.2]} 63. Nxe5+ {[%clk 0:00:18.4]} 63... Kd5 {[%clk
0:00:05.2]} 64. Nxc4 {[%clk 0:00:14.9]} 64... bxc4 {[%clk 0:00:06.1]} 65. Kc2
{[%clk 0:00:14.9]} 65... Bb2 {[%clk 0:00:06.5]} 66. Kb1 {[%clk 0:00:15.1]} 66...
c3 {[%clk 0:00:06.5]} 67. h4 {[%clk 0:00:14.7]} 67... Kc4 {[%clk 0:00:07]} 68.
c6 {[%clk 0:00:14.8]} 68... Kb3 {[%clk 0:00:07.7]} 69. c7 {[%clk 0:00:13.5]}
69... a2# {[%clk 0:00:08.6]} 0-1